bitfinex-derivatives/quotes_BNBF0:USTF0_20250303
["timestamp","ask_amount","ask_price","bid_price","bid_amount"]
[1740985772414,2.68174766,600.08,598.74,1.55885926]
[1740985772611,2.68174766,600.08,598.75,0.60478599]
[1740985772815,2.68174766,600.08,598.76,0.27075677]
[1740985773014,1.07028889,600.08,598.76,0.27075677]
[1740985774010,1.07028889,600.08,598.77,0.33401807]
[1740985774218,1.07028889,600.08,598.78,0.27075677]
[1740985774515,1.07028889,600.08,598.79,0.33400691]
[1740985774715,1.07028889,600.08,598.8,0.27075677]
[1740985775916,1.07028889,600.08,598.81,0.33399575]
[1740985776115,1.07028889,600.08,598.82,0.27075677]
[1740985776716,1.07028889,600.08,598.83,0.3339846]
[1740985777015,1.07028889,600.08,598.84,0.27075677]
[1740985778509,1.07028889,600.08,598.85,0.27076118]
[1740985778816,1.07028889,600.08,598.86,0.27076118]
[1740985779016,1.07028889,600.08,598.84,0.27076118]
[1740985779217,1.07028889,600.08,598.85,0.27076118]
[1740985779416,1.07028889,600.08,598.86,0.27076118]
[1740985779612,1.07028889,600.08,598.87,0.27076118]
[1740985779818,1.07028889,600.08,598.88,0.27076118]
[1740985780016,1.07028889,600.08,598.83,0.3339846]
[1740985780017,1.07028889,600.08,598.84,0.27076118]
[1740985780217,1.07028889,600.08,598.85,0.27076118]
[1740985780518,1.07028889,600.08,598.86,0.27076118]
[1740985780718,1.07028889,600.08,598.84,0.27076118]
[1740985780913,1.07028889,600.08,598.85,0.27076118]
[1740985781113,1.07028889,600.08,598.86,0.27076118]
[1740985781413,1.85828889,600.08,598.87,0.27076118]
[1740985781811,1.85828889,600.08,598.88,0.27076118]
[1740985782017,1.85828889,600.08,598.88,0.33395671]
[1740985782211,1.85828889,600.08,598.89,0.27076118]
[1740985783518,1.85828889,600.08,598.9,0.33394556]
[1740985783717,1.85828889,600.08,598.91,0.27076118]
[1740985783913,1.85828889,600.08,598.92,0.33393441]
[1740985784216,1.85828889,600.08,598.93,0.27076118]
[1740985785019,1.85828889,600.08,598.94,0.27076118]
[1740985785217,1.85828889,600.08,598.98,1.22482446]
[1740985785418,1.85828889,600.08,598.99,0.27076118]
[1740985785622,1.85828889,600.08,599.0,0.27076118]
[1740985785823,1.85828889,600.08,599.01,0.27076118]
[1740985786024,1.85828889,600.08,598.98,1.22482446]
[1740985786025,1.85828889,600.08,599.02,0.27076118]
[1740985786221,1.85828889,600.08,598.99,0.27076118]
[1740985786425,1.85828889,600.08,599.0,0.27076118]
[1740985786725,1.85828889,600.08,599.01,0.27076118]
[1740985787024,1.85828889,600.08,599.02,0.27076118]
[1740985787224,1.85828889,600.08,599.03,0.27076118]
[1740985787418,1.85828889,600.08,599.04,0.27076118]
[1740985787619,1.85828889,600.08,599.05,0.27076118]
[1740985787826,1.85828889,600.08,599.06,0.27076118]
[1740985788126,1.85828889,600.08,598.99,0.27076118]
[1740985788322,1.85828889,600.08,599.24,1.22482446]
[1740985788621,1.85828889,600.08,599.25,0.27076118]
[1740985789627,1.85828889,600.08,599.24,1.22482446]
[1740985789827,1.85828889,600.08,599.25,0.27058334]
[1740985790027,1.85828889,600.08,599.26,0.27058334]
[1740985790227,1.85828889,600.08,599.14,0.27058334]
[1740985790426,1.85828889,600.08,599.15,0.27058334]
[1740985790625,1.85828889,600.08,599.14,0.27058334]
[1740985790823,1.85828889,600.08,599.15,0.27058334]
[1740985791023,1.85828889,600.08,599.13,1.22482446]
[1740985791024,1.85828889,600.08,599.16,0.27058334]
[1740985791226,1.85828889,600.08,599.14,0.27058334]
[1740985792925,1.85828889,600.08,599.15,0.27058334]
[1740985793128,1.85828889,600.08,599.09,0.27058334]
[1740985793326,1.85828889,600.08,599.1,0.27058334]
[1740985793525,1.85828889,600.08,599.11,0.27058334]
[1740985793726,1.85828889,600.08,599.12,0.27058334]
[1740985793926,1.85828889,600.08,599.13,0.27058334]
[1740985794228,1.85828889,600.08,599.14,0.27058334]
[1740985794425,1.85828889,600.08,599.08,1.22482446]
[1740985794626,1.525,600.08,599.09,0.60438785]
[1740985794824,1.525,600.08,599.1,0.60438228]
[1740985795023,1.525,600.08,599.08,1.22482446]
[1740985795024,1.525,600.08,599.11,0.60437671]
[1740985795231,1.525,600.08,599.12,0.2705482]
[1740985797730,1.525,600.08,599.13,0.27066979]
[1740985797929,1.525,600.08,599.14,0.27066979]
[1740985798131,1.525,600.08,599.12,0.27066979]
[1740985798331,1.525,600.08,599.13,0.27066979]
[1740985798528,1.525,600.08,599.14,0.27066979]
[1740985798835,1.525,600.08,599.15,0.27066979]
[1740985799030,1.525,600.08,599.12,0.27066979]
[1740985799230,1.525,600.08,599.13,0.27066979]
[1740985799428,1.525,600.08,599.14,0.27066979]
[1740985799631,1.525,600.08,599.12,0.27066979]
[1740985799839,1.525,600.08,599.13,0.27066979]
[1740985801743,1.525,600.08,599.14,0.33381179]
[1740985802242,1.525,600.08,599.15,0.27046528]
[1740985802447,1.525,600.08,599.16,0.27046528]
[1740985802644,1.525,600.08,599.15,0.27046528]
[1740985802844,1.525,600.08,599.17,0.27046528]
[1740985803046,1.525,600.08,599.18,0.27046528]
[1740985803445,1.525,600.08,599.19,0.27046528]
[1740985803842,1.525,600.08,599.2,0.27046528]
[1740985804049,1.525,600.08,599.43,1.22482446]
[1740985804249,1.525,600.08,599.44,0.27046528]
[1740985806046,1.525,600.08,599.43,1.22482446]
[1740985806246,1.525,600.08,599.28,1.22482446]
[1740985806448,1.525,600.08,599.29,0.27056922]
[1740985806648,1.525,600.08,599.28,1.22482446]
[1740985806949,1.525,600.08,599.29,0.2705528]
[1740985809154,2.321,600.08,599.29,0.2705528]
[1740985809854,0.33329444,600.07,599.29,0.2705528]
[1740985810050,0.33329444,600.07,599.15,0.27069629]
[1740985810244,0.33329444,600.07,599.16,0.2706974]
[1740985810449,0.33329444,600.07,599.17,0.2706974]
[1740985810750,0.33329444,600.07,599.18,0.2706974]
[1740985810953,0.33329444,600.07,599.19,0.2706974]
[1740985811150,0.33329444,600.07,599.15,0.2706974]
[1740985811350,0.33329444,600.07,599.16,0.2706974]
[1740985811651,0.33329444,600.07,599.17,0.2706974]
[1740985812054,0.33329444,600.07,599.18,0.2706974]
[1740985812260,0.33329444,600.07,598.6,1.47549206]
[1740985812261,0.33329444,600.07,599.19,0.2706974]
[1740985812551,0.33329444,600.07,598.99,1.22482446]
[1740985812552,0.33329444,600.07,599.2,0.2706974]
[1740985812752,0.33329444,600.07,599.0,0.2706974]
[1740985813452,1.16829444,600.07,599.0,0.2706974]
[1740985814854,1.16829444,600.07,599.01,1.22482446]
[1740985815053,1.16829444,600.07,599.02,0.2706974]
[1740985817257,1.16829444,600.07,598.98,0.2706974]
[1740985817448,1.16829444,600.07,598.99,0.33389539]
[1740985817652,1.16829444,600.07,599.0,0.2706974]
[1740985818050,1.16829444,600.07,599.01,0.60458164]
[1740985818253,1.16829444,600.07,599.02,0.60457606]
[1740985818449,1.16829444,600.07,599.03,0.2706974]
[1740985818651,1.16829444,600.07,599.03,0.60457049]
[1740985818852,1.16829444,600.07,599.04,0.2706974]
[1740985819050,1.16829444,600.07,599.23,1.22482446]
[1740985819255,1.16829444,600.07,599.24,0.2706974]
[1740985821359,1.16829444,600.07,599.11,0.2706974]
[1740985821559,1.16829444,600.07,599.1,1.22482446]
[1740985821560,1.16829444,600.07,599.12,0.2706974]
[1740985821760,1.16829444,600.07,599.11,0.2706974]
[1740985821955,1.16829444,600.07,599.1,1.22482446]
[1740985821956,1.16829444,600.07,599.12,0.2706974]
[1740985822162,0.835,600.07,599.13,0.33381736]
[1740985822369,0.835,600.07,599.14,0.2706974]
[1740985823167,0.835,600.07,599.25,1.22482446]
[1740985823365,0.835,600.07,599.26,0.2706974]
[1740985823766,0.835,600.07,599.27,0.2706974]
[1740985823961,0.835,600.07,599.28,0.2706974]
[1740985824164,0.835,600.07,599.29,0.2706974]
[1740985824466,0.835,600.07,599.3,0.2706974]
[1740985824670,0.835,600.07,599.31,0.2706974]
[1740985824862,0.835,600.07,599.32,0.2706974]
[1740985825072,0.835,600.07,599.33,0.27039562]
[1740985825269,0.835,600.07,599.26,0.27039562]
[1740985825465,0.835,600.07,599.57,1.22482446]
[1740985826268,0.835,600.07,599.58,0.27044757]
[1740985828876,0.835,600.07,599.59,0.27044757]
[1740985829171,0.835,600.07,599.6,0.27044757]
[1740985829371,0.835,600.07,599.56,0.27044757]
[1740985829571,0.796,600.08,599.57,0.27044757]
[1740985829771,0.796,600.08,599.56,0.27044757]
[1740985829970,0.796,600.08,599.57,0.27044757]
[1740985830166,0.796,600.08,599.58,0.27044757]
[1740985830366,0.796,600.08,599.59,0.27044757]
[1740985830569,0.796,600.08,599.6,0.27044757]
[1740985830872,0.796,600.08,599.61,0.27044757]
[1740985831174,0.796,600.08,599.62,0.27044757]
[1740985831374,0.796,600.08,599.49,0.27044757]
[1740985831568,0.796,600.08,599.48,1.22482446]
[1740985831569,0.796,600.08,599.5,0.27044757]
[1740985831770,0.796,600.08,599.49,0.27044757]
[1740985831973,0.796,600.08,599.5,0.27044757]
[1740985832273,0.796,600.08,599.51,0.27044757]
[1740985832571,0.796,600.08,599.52,0.27044757]
[1740985832767,1.489,600.08,599.53,0.27044757]
[1740985832975,1.489,600.08,599.54,0.27044757]
[1740985833171,1.489,600.08,599.49,0.27044757]
[1740985833367,1.489,600.08,599.55,0.27044757]
[1740985833576,1.489,600.08,599.56,0.27044757]
[1740985833771,1.489,600.08,599.35,1.22482446]
[1740985833772,1.489,600.08,599.57,0.27044757]
[1740985834076,1.489,600.08,599.58,0.27044757]
[1740985834274,1.489,600.08,599.59,0.27044757]
[1740985834573,1.489,600.08,599.6,0.27044757]
[1740985834769,1.489,600.08,599.61,0.27044757]
[1740985834973,1.489,600.08,599.35,1.22482446]
[1740985835169,1.489,600.08,599.36,0.27015215]
[1740985835375,1.489,600.08,598.9,1.47549206]
[1740985835376,1.489,600.08,599.49,1.22482446]
[1740985835576,1.489,600.08,599.5,0.27015215]
[1740985835869,1.489,600.08,599.49,1.22482446]
[1740985835870,1.489,600.08,599.51,0.27015215]
[1740985836076,1.489,600.08,599.52,0.27015215]
[1740985836271,1.489,600.08,599.53,0.27015215]
[1740985836668,1.489,600.08,599.54,0.27015215]
[1740985836873,1.489,600.08,599.55,0.27015215]
[1740985837071,1.489,600.08,599.56,0.27015215]
[1740985837372,1.489,600.08,599.57,0.27015215]
[1740985837678,1.489,600.08,599.58,0.27015215]
[1740985837975,1.489,600.08,599.5,1.22482446]
[1740985837976,1.489,600.08,599.59,0.27015215]
[1740985838176,1.489,600.08,599.6,0.27015215]
[1740985838377,1.489,600.08,599.61,0.27015215]
[1740985838678,1.489,600.08,599.62,0.27015215]
[1740985838878,1.489,600.08,599.63,0.27015215]
[1740985839072,1.489,600.08,599.5,1.22482446]
[1740985839073,1.489,600.08,599.64,0.27015215]
[1740985839278,1.489,600.08,599.65,0.27015215]
[1740985839579,1.489,600.08,599.66,0.27015215]
[1740985839778,1.489,600.08,599.67,0.27015215]
[1740985839980,1.489,600.08,599.68,0.27015215]
[1740985840181,1.489,600.08,599.69,0.27015215]
[1740985840382,1.489,600.08,599.7,0.27015215]
[1740985840576,1.489,600.08,599.71,0.27015215]
[1740985840880,1.489,600.08,599.41,1.22482446]
[1740985840881,1.489,600.08,599.72,0.27015215]
[1740985841087,1.489,600.08,599.73,0.27015215]
[1740985841286,1.489,600.08,599.74,0.27015215]
[1740985841480,1.489,600.08,599.75,0.27015215]
[1740985841687,1.489,600.08,599.41,1.22482446]
[1740985841885,1.489,600.08,599.42,0.27011995]
[1740985842093,1.489,600.08,599.43,0.27011995]
[1740985842287,1.489,600.08,599.44,0.27011995]
[1740985842585,1.489,600.08,599.45,0.27011995]
[1740985842791,1.489,600.08,599.46,0.27011995]
[1740985842989,1.489,600.08,599.47,0.27011995]
[1740985843385,1.489,600.08,599.48,0.60374242]
[1740985843594,1.489,600.08,599.49,0.60373685]
[1740985843787,1.489,600.08,599.5,0.60373129]
[1740985843985,2.421,600.08,599.51,0.60372572]
[1740985844190,2.421,600.08,599.52,0.60372016]
[1740985844389,2.421,600.08,599.53,0.60371459]
[1740985844689,2.421,600.08,599.54,0.27011995]
[1740985844890,2.421,600.08,599.53,0.33359464]
[1740985845090,2.421,600.08,599.54,0.2701731]
[1740985845287,2.421,600.08,599.55,0.2701731]
[1740985845492,2.421,600.08,599.53,0.33359464]
[1740985845493,2.421,600.08,599.56,0.27019659]
[1740985845688,2.421,600.08,599.53,0.33359464]
[1740985845689,2.421,600.08,599.57,0.27019659]
[1740985845888,2.421,600.08,599.58,0.27019659]
[1740985846193,2.421,600.08,599.59,0.27019659]
[1740985846389,2.421,600.08,599.54,0.27019659]
[1740985846597,2.421,600.08,599.55,0.27013826]
[1740985846889,2.421,600.08,599.56,0.27013826]
[1740985847095,2.421,600.08,599.57,0.27013826]
[1740985847292,2.421,600.08,599.58,0.27013826]
[1740985847488,2.421,600.08,599.59,0.27013826]
[1740985847794,2.421,600.08,599.6,0.27013826]
[1740985847995,2.421,600.08,599.61,0.27013826]
[1740985848189,2.421,600.08,599.62,0.27013826]
[1740985848394,2.421,600.08,599.63,0.27013826]
[1740985848597,2.421,600.08,599.54,0.27013826]
[1740985848799,2.421,600.08,599.55,0.27013826]
[1740985849099,2.421,600.08,599.56,0.27013826]
[1740985849299,2.421,600.08,599.53,0.33359464]
[1740985849493,2.421,600.08,599.54,0.27019492]
[1740985849901,2.421,600.08,599.55,0.27019929]
[1740985850200,2.421,600.08,599.56,0.27019929]
[1740985850500,2.421,600.08,599.57,0.60377168]
[1740985850701,2.421,600.08,599.58,0.27019929]
[1740985850897,2.421,600.08,599.59,0.27019929]
[1740985851094,2.421,600.08,599.6,0.27019929]
[1740985851298,2.421,600.08,599.61,0.27019929]
[1740985851494,2.421,600.08,599.62,0.27019929]
[1740985851699,2.421,600.08,599.63,0.27019929]
[1740985852000,2.421,600.08,599.64,0.27019929]
[1740985852301,2.421,600.08,599.65,0.27019929]
[1740985852500,2.421,600.08,599.66,0.27019929]
[1740985852699,2.421,600.08,599.67,0.27019929]
[1740985852901,2.421,600.08,599.68,0.27019929]
[1740985853201,2.421,600.08,599.61,0.33355014]
[1740985853202,2.421,600.08,599.69,0.27019929]
[1740985853395,2.421,600.08,599.61,0.33355014]
[1740985853396,2.421,600.08,599.7,0.27019929]
[1740985853597,2.421,600.08,599.71,0.27019929]
[1740985853907,2.421,600.08,599.72,0.27019929]
[1740985854100,2.421,600.08,599.73,0.27019929]
[1740985854298,2.421,600.08,599.74,0.27019929]
[1740985854595,2.421,600.08,599.75,0.27019929]
[1740985854800,2.421,600.08,599.76,0.27019929]
[1740985854999,2.421,600.08,599.77,0.27019929]
[1740985855200,1.625,600.08,599.78,0.60365489]
[1740985855396,1.625,600.08,599.79,0.27019929]
[1740985855600,1.625,600.08,599.8,0.27019929]
[1740985855801,1.625,600.08,599.81,0.27019929]
[1740985855994,1.625,600.08,599.82,0.27019929]
[1740985856199,1.625,600.08,599.83,0.27019929]
[1740985856401,1.625,600.08,599.84,0.27019929]
[1740985856702,1.625,600.08,599.85,0.27019929]
[1740985856898,1.625,600.08,599.86,0.27019929]
[1740985857203,1.625,600.08,599.87,0.60360486]
[1740985857503,1.625,600.08,599.88,0.27019929]
[1740985857705,1.625,600.08,599.95,1.22482446]
[1740985858004,1.625,600.08,599.96,0.27019929]
[1740985859700,0.932,600.08,599.96,0.27019929]
[1740985860103,0.972,600.12,599.96,0.27019929]
[1740985860305,0.972,600.12,599.97,1.55817446]
[1740985860612,0.972,600.12,599.98,0.27019929]
[1740985860903,0.972,600.12,599.97,1.55817446]
[1740985861103,0.972,600.12,599.98,0.6032766]
[1740985861303,0.972,600.12,599.99,0.60327104]
[1740985861504,0.972,600.12,600.0,0.26993216]
[1740985862105,0.972,600.12,600.01,0.33332777]
[1740985862305,0.972,600.12,600.02,0.26993216]
[1740985862604,0.972,600.12,600.03,0.26994707]
[1740985862804,0.972,600.12,600.02,0.26994707]
[1740985863006,0.972,600.12,600.04,0.26994707]
[1740985863206,0.972,600.12,600.05,0.26994707]
[1740985863406,0.972,600.12,600.02,0.26994707]
[1740985863706,0.972,600.12,600.03,0.60326373]
[1740985863906,0.972,600.12,600.04,0.26994707]
[1740985864101,0.972,600.12,600.05,0.60325262]
[1740985864306,0.972,600.12,599.98,1.22957671]
[1740985864307,0.972,600.12,600.06,0.60324707]
[1740985864505,0.972,600.12,600.07,0.26994707]
[1740985864700,0.972,600.12,600.08,0.60323596]
[1740985864903,0.972,600.12,600.09,0.26994707]
[1740985865108,0.972,600.12,600.1,0.26994707]
[1740985865306,0.972,600.12,600.11,0.26994707]
[1740985867910,0.60813163,600.12,600.11,0.92704884]
[1740985868204,0.60813163,600.12,600.11,1.19699591]
[1740985869108,0.60813163,600.12,600.11,0.270018]
[1740985869502,0.60813163,600.12,600.09,0.270018]
[1740985869706,0.60813163,600.12,600.1,0.270018]
[1740985869902,0.60813163,600.12,600.09,0.270018]
[1740985870207,0.60813163,600.12,600.1,0.270018]
[1740985870410,0.60813163,600.12,600.11,0.33327223]
[1740985870609,0.60813163,600.12,600.11,0.60329023]
[1740985872208,0.60813163,600.12,600.11,0.60321186]
[1740985873102,0.931,600.54,600.11,0.60321186]
[1740985873308,0.931,600.54,600.12,0.26993963]
[1740985873707,0.931,600.54,600.13,0.27000092]
[1740985873908,0.931,600.54,600.14,0.27000092]
[1740985874207,0.931,600.54,600.15,0.27000092]
[1740985874403,0.931,600.54,599.97,1.23513614]
[1740985874404,0.931,600.54,600.16,0.60324538]
[1740985874608,0.931,600.54,600.17,0.27000092]
[1740985874808,0.931,600.54,600.18,0.27000092]
[1740985875005,0.931,600.54,600.19,0.27000092]
[1740985875410,0.931,600.54,600.16,0.33324446]
[1740985875411,0.931,600.54,600.2,0.27000092]
[1740985875614,0.931,600.54,600.21,0.27000092]
[1740985875812,0.931,600.54,600.22,0.27000092]
[1740985876109,0.931,600.54,600.35,1.23567929]
[1740985876313,0.931,600.54,600.36,0.60313437]
[1740985876614,0.931,600.54,600.37,0.60312882]
[1740985876914,0.931,600.54,600.38,0.60312327]
[1740985877108,0.931,600.54,600.39,0.60311772]
[1740985877308,0.931,600.54,600.4,0.60311217]
[1740985877508,0.931,600.54,600.41,0.60310663]
[1740985877709,0.931,600.54,600.35,1.23567929]
[1740985877710,0.931,600.54,600.42,0.60310108]
[1740985877913,0.931,600.54,600.43,0.27000092]
[1740985878614,0.931,600.54,600.44,0.26990983]
[1740985878810,0.931,600.54,600.43,0.26990983]
[1740985879010,0.931,600.54,600.44,0.26990983]
[1740985879317,0.931,600.54,600.45,0.26990983]
[1740985879512,0.931,600.54,600.43,0.26990983]
[1740985879716,0.931,600.54,600.44,0.26990983]
[1740985879911,0.931,600.54,600.43,0.26990983]
[1740985880116,0.931,600.54,600.44,0.26997174]
[1740985880318,0.931,600.54,600.43,0.26997174]
[1740985880511,0.931,600.54,600.44,0.26997174]
[1740985880715,0.931,600.54,600.45,0.26997174]
[1740985880915,0.931,600.54,600.43,0.26997174]
[1740985881111,0.931,600.54,600.46,0.26997174]
[1740985881319,0.931,600.54,600.47,0.60304416]
[1740985881617,0.931,600.54,600.48,0.26991842]
[1740985883122,0.931,600.54,600.47,0.33307242]
[1740985883322,0.931,600.54,600.48,0.26993463]
[1740985884818,0.931,600.54,600.49,0.26991824]
[1740985885018,0.931,600.54,600.47,1.56875171]
[1740985885019,0.931,600.54,600.5,0.26991824]
[1740985885223,0.931,600.54,600.51,0.26991824]
[1740985885418,0.931,600.54,600.48,0.26991824]
[1740985886426,0.931,600.54,600.49,0.26984238]
[1740985886627,0.931,600.54,600.48,0.26984238]
[1740985886822,0.931,600.54,600.49,0.26984238]
[1740985887130,0.931,600.54,600.5,0.26984238]
[1740985887327,0.931,600.54,600.48,0.26984238]
[1740985887526,0.931,600.54,600.49,0.26984238]
[1740985887725,0.931,600.54,600.5,0.26984238]
[1740985887923,0.931,600.54,600.47,0.33307242]
[1740985888124,0.931,600.54,600.48,0.26985728]
[1740985888322,0.931,600.54,600.49,0.26987017]
[1740985888523,0.931,600.54,600.48,0.26987017]
[1740985888721,0.931,600.54,600.49,0.26987017]
[1740985888925,0.931,600.54,600.47,0.33307242]
[1740985888926,0.931,600.54,600.5,0.26987017]
[1740985889124,0.931,600.54,600.48,0.26987017]
[1740985889326,0.931,600.54,600.47,0.33307242]
[1740985889327,0.931,600.54,600.49,0.26987017]
[1740985889522,0.931,600.54,600.48,0.26987017]
[1740985889722,0.931,600.54,600.49,1.19730002]
[1740985889925,0.62968188,600.54,600.5,0.26987017]
[1740985890727,0.62968188,600.54,600.51,0.26987017]
[1740985890927,0.62968188,600.54,600.5,0.26987017]
[1740985891229,0.62968188,600.54,600.51,0.26977163]
[1740985891430,0.62968188,600.54,600.5,0.26977163]
[1740985891729,0.62968188,600.54,600.51,0.60282187]
[1740985891922,0.776,600.95,600.52,0.60281632]
[1740985892123,0.776,600.95,600.53,0.26977163]
[1740985892327,0.776,600.95,600.54,0.3330336]
[1740985892525,0.776,600.95,600.55,0.26977163]
[1740985892734,0.776,600.95,600.56,0.26976089]
[1740985892923,0.776,600.95,600.57,0.26976089]
[1740985893121,0.776,600.95,600.54,0.3330336]
[1740985893122,0.776,600.95,600.58,0.26976089]
[1740985893324,0.776,600.95,600.59,0.26976089]
[1740985893523,0.776,600.95,600.6,0.26976089]
[1740985893726,0.776,600.95,600.61,0.26976089]
[1740985893924,0.776,600.95,600.62,0.26976089]
[1740985894226,0.776,600.95,600.63,0.26976089]
[1740985894431,0.776,600.95,600.64,0.60273904]
[1740985894626,0.776,600.95,600.65,0.26976089]
[1740985894828,0.776,600.95,600.66,0.60272795]
[1740985895031,0.776,600.95,600.51,0.92742985]
[1740985895032,0.776,600.95,600.67,0.60272241]
[1740985895531,0.776,600.95,600.91,1.23785992]
[1740985895726,0.776,600.95,600.92,0.26976089]
[1740985895927,0.776,600.95,600.93,0.26975809]
[1740985896128,0.776,600.95,600.92,0.26975809]
[1740985896430,0.776,600.95,600.91,1.23785992]
[1740985896431,0.776,600.95,600.93,0.26975809]
[1740985896625,0.776,600.95,600.94,0.26975809]
[1740985897231,0.776,600.95,600.91,1.23785992]
[1740985897432,0.776,600.95,600.92,0.26980507]
[1740985898533,0.776,600.95,600.93,0.26980507]
[1740985898736,0.776,600.95,600.78,0.26980507]
[1740985898928,0.776,600.95,600.79,0.60270009]
[1740985899133,0.776,600.95,600.8,0.26980507]
[1740985899333,0.776,600.95,600.8,0.60269455]
[1740985899639,0.776,600.95,600.81,0.26980507]
[1740985899834,0.776,600.95,600.8,0.33288948]
[1740985900033,0.776,600.95,600.81,0.26974977]
[1740985900234,0.776,600.95,600.82,0.33287839]
[1740985900430,0.776,600.95,600.83,0.26974977]
[1740985900629,0.776,600.95,600.84,0.33286731]
[1740985900829,0.776,600.95,600.85,0.26974977]
[1740985901135,0.776,600.95,600.86,0.60255768]
[1740985901335,0.776,600.95,600.87,0.60255214]
[1740985901541,0.776,600.95,600.88,0.26970145]
[1740985904239,0.776,600.95,600.89,0.33283962]
[1740985904440,0.776,600.95,600.9,0.26970145]
[1740985908144,0.776,600.95,600.91,0.26970145]
[1740985908349,0.776,600.95,600.92,0.26970145]
[1740985908544,0.776,600.95,600.89,0.33283962]
[1740985908545,0.776,600.95,600.9,0.26970145]
[1740985908750,0.776,600.95,600.93,0.33281746]
[1740985909149,0.776,600.95,600.94,0.26949991]
[1740985909345,0.776,600.95,600.93,0.33281746]
[1740985911453,0.776,600.95,600.94,0.26953452]
[1740985911848,0.52881796,600.95,600.94,0.26953452]
[1740985913953,0.52881796,600.95,600.94,0.26952834]
[1740985914656,0.52881796,600.95,600.93,0.33281746]
[1740985914953,0.52881796,600.95,600.94,0.26950868]
[1740985924667,0.52881796,600.95,600.94,0.26960919]
[1740985926163,0.52881796,600.95,600.93,0.33281746]
[1740985926465,0.52881796,600.95,600.94,0.26957499]
[1740985927974,0.52881796,600.95,600.94,0.26959582]
[1740985932765,0.52881796,600.95,600.93,0.33281746]
[1740985932966,0.52881796,600.95,600.94,0.26951062]
[1740985933266,0.52881796,600.95,600.94,1.19285983]
[1740985934564,0.36242076,600.95,600.94,1.19285983]
[1740985935968,1.861,601.46,600.94,1.19285983]
[1740985936171,2.754,601.46,600.95,0.26930586]
[1740985936469,2.754,601.46,600.96,0.26930586]
[1740985936768,2.754,601.46,600.97,0.26930586]
[1740985937069,2.754,601.46,600.94,0.92334921]
[1740985937070,2.754,601.46,600.98,0.26930586]
[1740985937262,2.754,601.46,600.99,0.26930586]
[1740985937462,2.754,601.46,601.0,0.60208456]
[1740985937767,2.754,601.46,601.01,0.60207902]
[1740985937967,2.754,601.46,601.02,0.60207348]
[1740985938170,2.754,601.46,600.85,1.73525696]
[1740985938171,2.754,601.46,601.36,1.23287892]
[1740985938367,2.754,601.46,601.37,0.60187981]
[1740985938569,1.846,601.46,601.38,0.26930586]
[1740985938868,1.846,601.46,601.39,0.33256289]
[1740985939268,1.846,601.46,601.4,0.26930586]
[1740985939768,1.846,601.46,601.41,0.33255183]
[1740985939969,1.846,601.46,601.42,0.26930586]
[1740985940671,1.846,601.46,601.43,0.33254077]
[1740985940970,1.846,601.46,601.44,0.26930586]
[1740985941170,1.846,601.46,601.45,0.33252971]
[1740985941366,1.846,601.46,601.45,0.60183557]
[1740985950974,1.846,601.46,601.45,0.33252971]
[1740985951178,1.846,601.46,601.45,0.60173309]
[1740985951978,0.893,601.46,601.45,0.60173309]
[1740985952379,0.893,601.46,601.45,1.82867501]
[1740985953176,0.842,602.15,601.45,1.82867501]
[1740985953376,0.842,602.15,601.46,0.26920338]
[1740985953576,0.842,602.15,601.47,0.26920338]
[1740985953779,0.842,602.15,601.48,0.26920338]
[1740985953985,0.842,602.15,601.49,0.26920338]
[1740985954283,0.842,602.15,601.46,0.26920338]
[1740985954490,0.842,602.15,601.47,0.26920338]
[1740985954985,0.813,602.14,601.48,0.26920338]
[1740985955186,0.813,602.14,601.49,0.26920338]
[1740985955484,0.813,602.14,601.5,0.26920338]
[1740985955687,0.813,602.14,601.45,0.33252971]
[1740985955688,0.813,602.14,601.51,0.26920338]
[1740985955990,0.813,602.14,601.45,0.33252971]
[1740985956186,0.813,602.14,601.46,0.26904369]
[1740985956387,0.813,602.14,601.47,0.26904369]